Cogmind - Beta 15 @@@ ROGUE MODE // 2025.10.09 @ 19:10:32 Player: rapskalian Result: Self-destructed Performance ------------- Evolutions (2) 1000 Regions Visited (3) 600 Robots Destroyed (22) 110 Value Destroyed (835) 835 Prototype IDs (2) 40 Alien Tech Used (0) 0 Bonus (0) 0 TOTAL SCORE: 2585 Bonus ------- None Cogmind --------- Core Integrity 254/550 Matter 260/300 Energy 20/100 System Corruption 0% Temperature Cool (10) Movement Walking (120) Location -8/Materials Parts ------- > --- POWER (1) -------- (None) > --- PROPULSION (4) --- Improved Treads Aluminum Leg Aluminum Leg Aluminum Leg > --- UTILITY (4) ------ Small Storage Unit Weapon Cycler Hardened Medium Armor Plating Corruption Screen > --- WEAPON (2) ------- Beam Rifle Heavy Laser > --- INVENTORY (8) ---- Aluminum Leg Compact Wheel Relay Coupler [Behemoth] (6) Improved Datajack Scrap Shield Fragment (41) Peak State ------------ > --- POWER ------------ Heavy Ion Engine > --- PROPULSION ------- Improved Treads Armored Treads Aluminum Leg Aluminum Leg > --- UTILITY ---------- Small Storage Unit Weapon Cycler Hardened Medium Armor Plating Corruption Screen > --- WEAPON ----------- Light Assault Rifle Advanced EMP Blaster > --- INVENTORY -------- Compact Wheel Relay Coupler [Behemoth] Assault Rifle Light Assault Rifle Improved Datajack Scrap Shield Fragment [Rating: 28] Favorites ----------- Power Light Ion Engine Engine Light Ion Engine Power Core Light Nuclear Core Propulsion Aluminum Leg Treads Improved Treads Leg Aluminum Leg Utility Small Storage Unit Device Subdweller Optics Storage Small Storage Unit Processor Corruption Screen Protection Hardened Medium Armor Plating Weapon Light Assault Rifle Energy Gun EM Pulse Gun Ballistic Gun Light Assault Rifle Launcher Advanced EMP Blaster Special Weapon Flamer Special Melee Weapon Improved Datajack Build | -11 -10 -10 -8 ------- Run | Yrd Mat Sub Mat Slots Evolved 4 | . . . 4 Power . | . . . . Propulsion 2 | . . . 2 Utility 2 | . . . 2 Weapon . | . . . . Parts Attached 43 | 7 2 10 24 Power 6 | 1 . 3 2 Engine 5 | 1 . 3 1 Core 1 | . . . 1 Reactor . | . . . . Propulsion 16 | 2 1 3 10 Treads 5 | . . . 5 Leg 11 | 2 1 3 5 Wheel . | . . . . Hover . | . . . . Flight . | . . . . Utility 9 | 2 . 1 6 Device 4 | 1 . 1 2 Storage 1 | 1 . . . Processor 1 | . . . 1 Hackware . | . . . . Protection 3 | . . . 3 Artifact . | . . . . Weapon 12 | 2 1 3 6 Energy Gun 4 | . . 1 3 Energy Cannon . | . . . . Ballistic Gun 5 | 2 1 1 1 Ballistic Cannon . | . . . . Launcher 1 | . . . 1 Special Weapon 1 | . . 1 . Impact Weapon . | . . . . Slashing Weapon . | . . . . Piercing Weapon . | . . . . Special Melee Weapon 1 | . . . 1 Unidentified Prototypes 2 | . . . 2 Corrupted Parts 1 | . . 1 . System Corruption 1 | . . 1 . Parts Lost 26 | . . 7 19 Power 4 | . . 2 2 Propulsion 10 | . . 1 9 Utility 3 | . . 1 2 Weapon 9 | . . 3 6 Highest Loss Streak 11 | . . 5 11 To Critical Strikes . | . . . . Average Backups 5 | 2 5 6 5 Power . | . 1 . . Propulsion 2 | . 1 3 2 Utility . | . . . . Weapon 2 | . 2 2 1 Tool/Special . | . . . . Unused Backups 4 | . 1 . 3 Power . | . . . . Propulsion 3 | . 1 . 2 Utility 1 | . . . 1 Weapon . | . . . . Tool/Special . | . . . . Average Slot Usage (%) 94 | . 100 98 86 Engine 10 | . 14 13 4 Treads 2 | . . . 7 Leg 25 | . 28 28 21 Device 13 | . 14 13 14 Storage 12 | . 14 14 9 Processor 2 | . . . 8 Energy Gun 4 | . . 3 7 Ballistic Gun 17 | . 28 22 6 Peak Build Rating 28 | 7 7 10 28 Average Rating 12 | 5 7 8 20 On Entrance 5 | . 7 7 9 Naked Turns . | . . . . Heaviest Build 25 | 12 13 15 25 Greatest Support 89 | 20 20 20 89 Greatest Overweight (x) 4 | . . 4 1 Average Overweight (x) . | . . . . Largest Inventory Capacity 8 | 8 8 8 8 Average Capacity 7 | 7 8 8 8 Most Carried 8 | 3 8 8 8 Average Carried 6 | 2 5 7 6 Final Capacity 8 | 8 8 8 8 Final Carried 8 | 3 8 7 5 Class Distribution -------------------- 68% | Mutant 31% | Scavenger-Mutant Dominant Class ---------------- Mutant | -10/Materials Mutant | -10/Subcaves Scavenger-Mutant | -8/Materials Resources | -11 -10 -10 -8 ----------- Run | Yrd Mat Sub Mat Matter Collected 934 | 255 47 260 372 Remotely . | . . . . Salvage Created 947 | 34 132 208 573 Parts 57 | 6 10 11 30 Haulers Intercepted . | . . . . Recyclers Shooed . | . . . . Parts Field Recycled . | . . . . Retrieved Matter . | . . . . Parts Self-Destructed 7 | . . 7 . Prevented . | . . . . Kills | -11 -10 -10 -8 ------- Run | Yrd Mat Sub Mat Combat Hostiles Destroyed 18 | . 3 4 11 Guns 15 | . 3 4 8 AOE 3 | . . . 3 Classes Destroyed 7 | 1 1 1 4 Tunneler 2 | 2 . . . Recycler 1 | . . . 1 Watcher 1 | . . . 1 Swarmer 3 | . . . 3 Grunt 9 | . 3 . 6 Sentry 2 | . . . 2 Subdweller 4 | . . 4 . Best Kill Streak 4 | 2 3 1 4 Combat Bots Only 3 | . 3 1 3 Max Kills in Single Turn 1 | 1 1 1 1 Gunslinging . | . . . . Exploded 1 | . . . 1 Melee . | . . . . Uniques/NPCs Destroyed . | . . . . Combat | -11 -10 -10 -8 -------- Run | Yrd Mat Sub Mat Hostile Shots Fired 290 | . 22 47 221 Missed 75 | . 8 14 53 Hits 215 | . 14 33 168 Melee 7 | . . . 7 Projectile 208 | . 14 33 161 Critical Strikes 16 | . . 1 15 Damage Taken 3916 | . 200 723 2993 Core 433 | . 58 79 296 Absorbed by Shields . | . . . . Core Remaining (%) 72 | 100 . 45 . Volleys Fired 115 | 4 9 26 76 Largest 2 | 2 2 2 2 Hottest 121 | 40 40 120 121 Shots Fired 187 | 8 18 49 112 Gun 179 | 8 18 46 107 Cannon . | . . . . Launcher 5 | . . . 5 Special 3 | . . 3 . Kinetic 131 | 8 18 44 61 Thermal 26 | . . 3 23 Explosive . | . . . . Electromagnetic 30 | . . 2 28 Robot Hit Streak 28 | 4 6 28 11 Robot Miss Streak 2 | 2 2 1 2 Penetration Max . | . . . . Secondary Targets 1 | . . 1 . Max Gunslinging Chain 1 | . . 1 . Shots Hit Robots 140 | 4 11 42 83 Core Hits 60 | 2 5 12 41 Critical Kills 1 | . . . 1 Critical Parts Destroyed . | . . . . Critical Strikes 3 | . . . 3 Burn 2 | . . . 2 Destroy 1 | . . . 1 Melee Attacks 5 | . . . 5 Impact . | . . . . Slashing . | . . . . Piercing . | . . . . Sneak Attacks 1 | . . . 1 Combat Hostiles . | . . . . Follow-up Attacks . | . . . . Damage Inflicted 1769 | 44 148 457 1120 Guns 1531 | 44 148 433 906 Cannons . | . . . . Explosions 214 | . . . 214 Melee . | . . . . Ramming 4 | . . 4 . Kinetic 1008 | 44 148 413 403 Thermal 346 | . . 20 326 Explosive . | . . . . Electromagnetic 411 | . . 20 391 Impact . | . . . . Slashing . | . . . . Piercing . | . . . . Highest Corruption 1 | . . 1 . Average Corruption 1 | . . 1 . Corruption Purged . | . . . . Corruption Blocked 2 | . . . 2 Effects 3 | . . 3 . Heat Flow Errors 2 | . . 2 . Energy Discharges 1 | . . 1 . Overload Shots . | . . . . Overflow Damage 13 | . . . 13 Projectiles . | . . . . Explosions 13 | . . . 13 Melee . | . . . . Knockbacks . | . . . . Impact . | . . . . Kinetic . | . . . . Secondary . | . . . . Self-Inflicted Damage 182 | . . 4 178 Shots 6 | . . . 6 Rammed . | . . . . Targets Rammed . | . . . . Kicked . | . . . . Crushed . | . . . . Highest Temperature 223 | . 2 223 162 Average Temperature 46 | . 2 53 47 Received Heat Transfer 1863 | . 111 150 1602 Siege Activations . | . . . . Martial Activations . | . . . . Shielding Activations . | . . . . Robots Disrupted . | . . . . Combat Hostiles . | . . . . Robots Corrupted . | . . . . Combat Hostiles . | . . . . Parts Fried 2 | . . . 2 Impact Corruptions . | . . . . Robots Melted . | . . . . Combat Hostiles . | . . . . Parts Melted 4 | . . . 4 Heat Transferred 946 | . . 160 786 Parts Sabotaged . | . . . . Parts Stolen . | . . . . Parts Stripped . | . . . . Power Chain Reactions 1 | . . . 1 Alert | -11 -10 -10 -8 ------- Run | Yrd Mat Sub Mat Maximum Alert Level 1 | . . . 1 Low Security (%) 86 | 100 100 . 80 Level 1 13 | . . . 19 Level 2 . | . . . . Level 3 . | . . . . Level 4 . | . . . . Level 5 . | . . . . High Security . | . . . . Max Security . | . . . . Peak Influence 270 | 10 60 . 270 Initial . | . . . . Average 70 | 1 10 . 98 Influence Increases 626 | 10 97 . 519 Destroy 0b10 Robot/C 280 | . 60 . 220 Destroy 0b10 Robot/NC 20 | 10 . . 10 Destroy Leader 62 | . 10 . 52 Successful Hack 19 | . 12 . 7 Disable Machine 15 | . . . 15 Anti-Garrison Action 150 | . . . 150 Destroy Structure 5 | . . . 5 Lose Combat Pursuer 75 | . 15 . 60 Influence Decreases 516 | 10 47 50 409 Entered New Map 25 | . . 25 . Time Decay 311 | 10 47 25 229 Lost Part 180 | . . . 180 Squads Dispatched 6 | . 3 . 3 Investigation 2 | . 2 . . Extermination . | . . . . Reinforcement 2 | . 1 . 1 Assault 2 | . . . 2 Garrison . | . . . . Intercept . | . . . . Searches Triggered . | . . . . Construction Impeded . | . . . . Haulers Reinforced . | . . . . Active Scanning Responses . | . . . . Cargo Convoy Interrupts . | . . . . Stealth | -11 -10 -10 -8 --------- Run | Yrd Mat Sub Mat Distress Signals 1 | . 1 . . Communications Jammed . | . . . . Distress Signals . | . . . . Times Spotted 38 | . 5 5 28 Peak Tracking Total 8 | . 4 2 8 Tactical Retreats 6 | . 1 1 4 Traps | -11 -10 -10 -8 ------- Run | Yrd Mat Sub Mat Traps Triggered 2 | . 1 1 . Indirectly . | . . . . Trap Hack Attempts . | . . . . Triggered . | . . . . Disarmed . | . . . . Reprogrammed . | . . . . Reused . | . . . . Traps Extracted . | . . . . Installed . | . . . . Triggered . | . . . . Machines | -11 -10 -10 -8 ---------- Run | Yrd Mat Sub Mat Machines Disabled 2 | . . . 2 Max in Single Turn 2 | . . . 2 Garrison Access 1 | . . . 1 Machines Repaired . | . . . . Machines Dismantled . | . . . . Machines Sabotaged . | . . . . Overloaded Fab Kills . | . . . . Hacking | -11 -10 -10 -8 --------- Run | Yrd Mat Sub Mat Machines Accessed 6 | . 3 . 3 Terminals 6 | . 3 . 3 Fabricators . | . . . . Repair Stations . | . . . . Recycling Units . | . . . . Scanalyzers . | . . . . Garrison Access . | . . . . Total Hacks 16 | . 6 . 10 Successful 5 | . 3 . 2 Failed 10 | . 2 . 8 Catastrophic 1 | . . . 1 Database Lockouts 1 | . 1 . . Manual 15 | . 6 . 9 Terminals 16 | . 6 . 10 Fabricators . | . . . . Repair Stations . | . . . . Recycling Units . | . . . . Scanalyzers . | . . . . Garrison Access . | . . . . Terminal Hacks 5 | . 3 . 2 Robot Analysis 3 | . 2 . 1 Emergency Access Points 1 | . . . 1 Maintenance Status 1 | . 1 . . Fabricator Hacks . | . . . . Repair Station Hacks . | . . . . Recycling Unit Hacks . | . . . . Scanalyzer . | . . . . Garrison Access Hacks . | . . . . Unauthorized Hacks . | . . . . Terminals . | . . . . Fabricators . | . . . . Repair Stations . | . . . . Recycling Units . | . . . . Scanalyzers . | . . . . Garrison Access . | . . . . Data Cores Recovered . | . . . . Used . | . . . . Hacking Detections 4 | . 1 . 3 Full Trace Events . | . . . . Feedback Events . | . . . . Feedback Blocked . | . . . . Robot Schematics Acquired . | . . . . Robots Built . | . . . . Authchips . | . . . . Time . | . . . . Total Robot Build Rating . | . . . . Part Schematics Acquired . | . . . . Parts Built . | . . . . Authchips . | . . . . Time . | . . . . Total Part Build Rating . | . . . . Parts Repaired . | . . . . Time . | . . . . Parts Recycled . | . . . . Recycled Matter . | . . . . Retrieved Matter . | . . . . Retrieved Components . | . . . . Parts Scanalyzed . | . . . . Part Schematics Acquired . | . . . . Parts Damaged . | . . . . Bothacking | -11 -10 -10 -8 ------------ Run | Yrd Mat Sub Mat Used RIF Installer . | . . . . Robots Hacked 1 | . . . 1 Non-combat 1 | . . . 1 Combat . | . . . . Robot Hacks Applied 1 | . . . 1 no_distress 1 | . . . 1 Relay Couplers Released 2 | . . . 2 Machine Destruction 2 | . . . 2 Fabnet Peak Effective % . | . . . . Robots Rewired . | . . . . Allies Hacked . | . . . . Hacks Repelled . | . . . . Allies | -11 -10 -10 -8 -------- Run | Yrd Mat Sub Mat Total Allies . | . . . . Largest Group . | . . . . Highest-Rated Group . | . . . . Highest-Rated Ally . | . . . . Total Orders . | . . . . Ally Attacks . | . . . . Total Damage . | . . . . Kills . | . . . . Allies Corrupted . | . . . . Allies Melted . | . . . . Intel | -11 -10 -10 -8 ------- Run | Yrd Mat Sub Mat Active Infowar (turns) 1346 | 10 236 1100 . Optics 993 | . . 993 . Seismic 353 | 10 236 107 . Robot Analysis Total 3 | . 2 . 1 Derelict Logs Recovered 1 | . . 1 . Drone Launches . | . . . . Drone Recoveries . | . . . . Exploration | -11 -10 -10 -8 ------------- Run | Yrd Mat Sub Mat Turns Passed 2196 | 82 236 1157 721 Spaces Moved 1368 | 49 152 862 305 Core 2 | 1 . 1 . Treads 60 | . . . 60 Legs 1306 | 48 152 861 245 Wheels . | . . . . Hover . | . . . . Flight . | . . . . Fastest Speed 50 | 50 120 120 120 Average Speed 122 | 118 120 120 128 Slowest Speed 250 | 120 120 250 250 Overloaded Moves . | . . . . Propulsion Burnouts . | . . . . Robots Hopped . | . . . . Potential Cave-ins . | . . . . Cave-ins Triggered . | . . . . Exploration Rate (%) 26 | 5 40 43 19 Regions Visited 3 Branch Regions 1 Pre-discovered Areas 2 | . . 2 . Known Exits Taken . | . . . . Unknown Exits Taken 3 | 1 1 1 . Scrap Searched . | . . . . Spaces Dug . | . . . . Terrain Destroyed 3 | . . . 3 Melee . | . . . . Projectile . | . . . . AOE 3 | . . . 3 Terrain Rammed 1 | . . 1 . Walls Destroyed . | . . . . Machines Disabled . | . . . . Actions | -11 -10 -10 -8 --------- Run | Yrd Mat Sub Mat Total 1724 | 62 191 926 545 Wait 147 | . 20 17 110 Move 1365 | 48 151 861 305 Hop . | . . . . Pick Up 18 | 3 6 4 5 Fast Attach 32 | 7 . 5 20 Attach 14 | . . 6 8 Detach 1 | . . . 1 Swap 16 | . 2 5 9 Drop 10 | . 3 1 6 Fire 115 | 4 9 26 76 Melee 5 | . . . 5 Ram 1 | . . 1 . Kick . | . . . . Crush . | . . . . Escape Stasis . | . . . . Rewire . | . . . . Trap . | . . . . Miscellaneous . | . . . . Route ------- -11/Scrapyard -10/Materials (discovered 4 exits: [*Mat] / [*Min x2] / [*Sub]) -10/Subcaves -8/Materials History --------- Turn | Location | Event 10 | -11/Scrapyard | Discovered new exit (range 15) 83 | -11/Scrapyard | Entered Materials 84 | -10/Materials | Met a group of wandering Federalists 120 | -10/Materials | Discovered new exit (range 14) 169 | -10/Materials | Discovered new exit (range 14) 227 | -10/Materials | Central database locked down 233 | -10/Materials | Discovered new exit (range 16) 289 | -10/Materials | Lost 3 allies 316 | -10/Materials | Discovered new exit (range 3) 317 | -10/Materials | Build established: Mutant 319 | -10/Materials | Entered Subcaves 435 | -10/Subcaves | Core integrity fell below 50% 477 | -10/Subcaves | Lost 5 parts (1p1n1u2w) 567 | -10/Subcaves | Shifting Twisted Machinery released Sub. Power Source 721 | -10/Subcaves | Learned location of Zion (-6) 721 | -10/Subcaves | Met a Zionite searching for "candidates" 991 | -10/Subcaves | Shifting Twisted Machinery released Sub. Laser 1240 | -10/Subcaves | Shifting Twisted Machinery released Sub. Laser 1467 | -10/Subcaves | Discovered new exit (range 9) 1476 | -10/Subcaves | Entered Materials 1476 | -8/Materials | Evolved 4 slots: Propulsion x2, Utility x2 1843 | -8/Materials | Build established: Scavenger-Mutant 2080 | -8/Materials | Lost 11 parts (1p4n1u5w) 2083 | -8/Materials | Core integrity fell below 50% 2197 | -8/Materials | Self-destructed Last Messages --------------- 02096_ G-47 Trooper destroyed. 02105_ Imp. Treads destroyed. 02106_ Acquired Beam Rifle. 02108_ Arm. Treads destroyed. 02112_ Acquired Aluminum Leg. 02127_ Critical hit (Burn: +37). 02129_ G-47 Trooper suffers critical hit (Burn). 02138_ Critical hit (Burn: +37). 02155_ Acquired Lgt. Nuclear Core. 02162_ Hrd. Medium Armor Plating destroyed. 02163_ G-47 Trooper suffers critical hit (Burn). 02166_ Imp. Treads destroyed. 02170_ Lgt. Nuclear Core destroyed. 02170_ Particle Gun destroyed. 02173_ Acquired Aluminum Leg. 02174_ Critical hit (Burn: +37). 02176_ Acquired 35 matter. 02179_ Acquired Aluminum Leg. 02187_ Acquired Hrd. Medium Armor Plating. 02196_ Critical hit (Burn: +37). Map ----- +----------------------------------------------------+ | ###+##### # #??????? | | # # # #??????? | | # + / #??????? | | # # # = #??????? | | ######### #######/########## | | ???????## ##???# = """"" # | | ??###### #???# """ # | | #???# " " # | | T #???#= # | | #???# # | | ######## #???# ![ # | | ???????#######???# *%= !# | | ?????????????????######+###### | | ???????????????####??#!=#????? | | ???????????????+ #??# !#????? | | ???????????????# #??# #????? | | ???????????????# #??# #????? | | ????????? ???# #?## ##???? | | ????????? # ### #???? | | ?????????? / #???? | | ???????????????# #???? | | ???????????????## ### #???? | | ????????????????# #?## ##???? | | ????????????????# #??# #????? | | ??????????????###+#### ###### | | ??????????????# # #@ # | | ??????????????#== """# # !=# | | ?????????????##== R"#! # != # | | ?????????????# """#% #ggg # | | ?????????????## + %+ il # | | ??????????????#! # # # | | ??????????????####+### # ! # | | ????????????????# # # | | ????????????????# # !# | | ????????????????# ### ###### | | ????????????????# #?# #????? | | ????????????????# #?# #????? | | ???????????????? #?####????? | | ???????????????? #?????????? | | ????????????????####?????????? | | ?????????????????????????????? | | ?????????????????????????????? | | ?????????????????????????????? | | ?????????????????????????????? | | ?????????????????????????????? | | | | | | | | | | | +----------------------------------------------------+ Best States ------------- Heat Dissipation 31 Coolant Potential 50 Energy Generation 15 Energy Capacity 280 Matter Stores 300 Matter Capacity 300 Sight Range 21 Terrain Scan Density 10 Corruption Block 8 Armor Coverage 225 Weapon Cycling 15 Evasion (%) 55 Recoil Reduction 4 Item Schematics ----------------- None Robot Schematics ------------------ None Fabricated ------------ Nothing Repaired ---------- Nothing Alien Tech Used ----------------- None Achievements -------------- None Challenges ------------ None Game ------ Seed BracePersonalDetector Manual? 0 Play Time 00:21:45 Cumulative 30.8 hours Start 2025.10.09 @ 18:49:40 End 2025.10.09 @ 19:10:32 Sessions 1 Manual Loads 0 Difficulty Rogue Special Mode None Game No. 28 Rogue 28 Adventurer 0 Explorer 0 Win Type - Total 0 Types 0/0/0/0/0/0/0/0/0/0 Lore% 13 Gallery% 29 Achievement% 19 Wizard Run 0 Options --------- Layout 0 ASCII 0 Keyboard 1 Movement Numpad Keybinds 0 Fullscreen 1 Font 24/Smallcaps Map View 76x50 Zoom Use 0% Tactical HUD 1 Map Filters NONE Filters NONE Steam 1 RUN: 5df4cf3d-7e3c-4c9c-b11b-9aeb74bcd2fc